fUST/lending_fUST_20250605
["ID","MTS","AMOUNT","RATE_DAILY","PERIOD"]
[364341907,1749073844149,-2098.31,0.00019504,2]
[364341908,1749073844159,-440.0,0.00019504,2]
[364341909,1749073844168,-853.25,0.00019504,2]
[364341910,1749073844179,-696.82,0.00019505,2]
[364341911,1749073844189,-1215.72,0.00019505,2]
[364341912,1749073844199,-1221.12127836,0.00019505,2]
[364341913,1749073844211,-1628.50872164,0.00019505,2]
[364341914,1749073844221,-869.47,0.00019505,2]
[364341915,1749073844231,-410.0,0.00019505,2]
[364341916,1749073844240,-440.0,0.00019506,2]
[364341917,1749073844250,-440.0,0.00019506,2]
[364341918,1749073844259,-440.0,0.00019506,2]
[364341919,1749073844269,-440.0,0.00019506,2]
[364341920,1749073844279,-445.05014105,0.00019506,2]
[364341921,1749073844291,-275.55985895,0.00019506,2]
[364341922,1749073844301,-440.0,0.00019506,2]
[364341923,1749073844311,-1514.33933137,0.00019521,2]
[364341924,1749073844321,-300.0,0.00019636,2]
[364341925,1749073844330,-168.59964689,0.00019641,2]
[364341926,1749073844343,-169.88035311,0.00019641,2]
[364341927,1749073844353,-1425.68,0.00019641,2]
[364341928,1749073844363,-1642.68,0.00019641,2]
[364341929,1749073844373,-570.94,0.00019641,2]
[364341930,1749073844383,-540.37,0.00019641,2]
[364341931,1749073844393,-250.27722333,0.00019641,2]
[364341932,1749073844410,-189.72277667,0.00019641,2]
[364341933,1749073844420,-514.25,0.00019641,2]
[364341934,1749073844430,-768.8,0.00019641,2]
[364341935,1749073844440,-449.49,0.00019641,2]
[364341936,1749073844450,-440.0,0.00019641,2]
[364341937,1749073844459,-440.0,0.00019641,2]
[364341938,1749073844468,-319.92482143,0.00019642,2]
[364341939,1749073844480,-387.83517857,0.00019642,2]
[364341940,1749073844490,-440.0,0.00019642,2]
[364341941,1749073844500,-1723.47,0.00019642,2]
[364341942,1749073844510,-1117.39,0.00019642,2]
[364341943,1749073844519,-273.31,0.00019642,2]
[364341944,1749073844529,-440.0,0.00019642,2]
[364341945,1749073844539,-440.0,0.00019642,2]
[364341946,1749073844549,-670.39,0.00019642,2]
[364341947,1749073844558,-440.0,0.00019642,2]
[364341948,1749073844568,-639.29,0.00019643,2]
[364341949,1749073844577,-440.0,0.00019643,2]
[364341950,1749073844587,-440.0,0.00019643,2]
[364341951,1749073844598,-236.26,0.00019643,2]
[364341952,1749073844607,-440.0,0.00019643,2]
[364341953,1749073844617,-500.0,0.00019667,2]
[364341954,1749073844627,-450.0,0.00019726,2]
[364341955,1749073844636,-450.0,0.00019726,2]
[364341956,1749073844646,-450.0,0.00019726,2]
[364341957,1749073844655,-450.0,0.00019726,2]
[364341958,1749073844664,-450.0,0.00019726,2]
[364341959,1749073844674,-450.0,0.00019726,2]
[364341960,1749073844684,-450.0,0.00019726,2]
[364341961,1749073844693,-1514.33933137,0.00019728,2]
[364341962,1749073844703,-500.0,0.00019777,2]
[364341963,1749073844713,-2098.31,0.00019778,2]
[364341964,1749073844725,-440.0,0.00019778,2]
[364341965,1749073844734,-853.25,0.00019778,2]
[364341966,1749073844744,-696.82,0.00019779,2]
[364341967,1749073844755,-1215.72,0.00019779,2]
[364341968,1749073844765,-2849.63,0.00019779,2]
[364341969,1749073844775,-869.47,0.00019779,2]
[364341970,1749073844785,-440.0,0.0001978,2]
[364341971,1749073844797,-440.0,0.0001978,2]
[364341972,1749073844808,-440.0,0.0001978,2]
[364341973,1749073844817,-720.61,0.0001978,2]
[364341974,1749073844826,-440.0,0.0001978,2]
[364341975,1749073844835,-180.693,0.00019837,2]
[364341976,1749073844845,-240.907,0.00019837,2]
[364341977,1749073844854,-450.0,0.00019915,2]
[364341978,1749073844864,-1425.68,0.00019915,2]
[364341979,1749073844874,-1642.68,0.00019915,2]
[364341980,1749073844884,-570.94,0.00019915,2]
[364341981,1749073844894,-418.03,0.00019915,2]
[364341982,1749073844904,-768.8,0.00019915,2]
[364341983,1749073844914,-449.49,0.00019915,2]
[364341985,1749073844924,-376.64,0.00019915,2]
[364341987,1749073844933,-340.0,0.00019915,2]
[364341989,1749073844943,-707.76,0.00019916,2]
[364341990,1749073844952,-440.0,0.00019916,2]
[364341992,1749073844961,-1723.47,0.00019916,2]
[364341994,1749073844971,-1117.39,0.00019916,2]
[364341995,1749073844981,-440.0,0.00019916,2]
[364341996,1749073844990,-440.0,0.00019916,2]
[364341997,1749073845000,-670.39,0.00019916,2]
[364341999,1749073845009,-440.0,0.00019916,2]
[364342001,1749073845019,-639.29,0.00019917,2]
[364342003,1749073845028,-440.0,0.00019917,2]
[364342004,1749073845037,-440.0,0.00019917,2]
[364342005,1749073845046,-1514.33933137,0.00019934,2]
[364342006,1749073845055,-500.0,0.00020052,2]
[364342007,1749073845064,-2098.31,0.00020052,2]
[364342008,1749073845073,-440.0,0.00020052,2]
[364342009,1749073845082,-853.25,0.00020052,2]
[364342010,1749073845092,-696.82,0.00020053,2]
[364342011,1749073845101,-1215.72,0.00020053,2]
[364342012,1749073845110,-2849.63,0.00020053,2]
[364342013,1749073845119,-869.47,0.00020053,2]
[364342014,1749073845129,-440.0,0.00020054,2]
[364342015,1749073845139,-440.0,0.00020054,2]
[364342016,1749073845149,-440.0,0.00020054,2]
[364342017,1749073845158,-720.61,0.00020054,2]
[364342019,1749073845168,-440.0,0.00020054,2]
[364342021,1749073845178,-2600.0,0.00020068,2]
[364342022,1749073845187,-1514.33933137,0.00020141,2]
[364342024,1749073845197,-264.923256,0.00020187,2]
[364342026,1749073845207,-450.0,0.00020189,2]
[364342028,1749073845217,-1425.68,0.00020189,2]
[364342030,1749073845226,-1642.68,0.00020189,2]
[364342032,1749073845236,-570.94,0.00020189,2]
[364342034,1749073845246,-768.8,0.00020189,2]
[364342036,1749073845256,-449.49,0.00020189,2]
[364342037,1749073845265,-707.76,0.0002019,2]
[364342038,1749073845274,-440.0,0.0002019,2]
[364342039,1749073845283,-1723.47,0.0002019,2]
[364342040,1749073845293,-1117.39,0.0002019,2]
[364342041,1749073845304,-440.0,0.0002019,2]
[364342042,1749073845314,-440.0,0.0002019,2]
[364342043,1749073845324,-670.39,0.0002019,2]
[364342044,1749073845333,-440.0,0.0002019,2]
[364342045,1749073845344,-639.29,0.00020191,2]
[364342046,1749073845353,-440.0,0.00020191,2]
[364342047,1749073845363,-440.0,0.00020191,2]
[364342048,1749073845372,-587.0,0.00020276,2]
[364342049,1749073845382,-500.0,0.00020326,2]
[364342050,1749073845391,-2098.31,0.00020326,2]
[364342051,1749073845403,-440.0,0.00020326,2]
[364342052,1749073845413,-853.25,0.00020326,2]
[364342053,1749073845424,-696.82,0.00020327,2]
[364342054,1749073845434,-1215.72,0.00020327,2]
[364342055,1749073845443,-2849.63,0.00020327,2]
[364342056,1749073845453,-869.47,0.00020327,2]
[364342057,1749073845463,-440.0,0.00020328,2]
[364342058,1749073845473,-440.0,0.00020328,2]
[364342059,1749073845483,-440.0,0.00020328,2]
[364342060,1749073845493,-720.61,0.00020328,2]
[364342061,1749073845503,-440.0,0.00020328,2]
[364342063,1749073845513,-1514.33933137,0.00020348,3]
[364342066,1749073845523,-160.0,0.00020426,2]
[364342067,1749073845533,-423.69433488,0.00020426,2]
[364342068,1749073845542,-160.0,0.00020426,2]
[364342069,1749073845551,-229.45591648,0.00020426,2]
[364342070,1749073845561,-842.5625,0.00020426,2]
[364342071,1749073845571,-212.90465545,0.00020426,2]
[364342073,1749073845580,-450.0,0.00020463,2]
[364342075,1749073845590,-1425.68,0.00020463,2]
[364342077,1749073845599,-1642.68,0.00020463,2]
[364342079,1749073845609,-570.94,0.00020463,2]
[364342081,1749073845618,-768.8,0.00020463,2]
[364342083,1749073845627,-449.49,0.00020463,2]
[364342085,1749073845637,-707.76,0.00020464,2]
[364342087,1749073845647,-440.0,0.00020464,2]
[364342089,1749073845656,-1723.47,0.00020464,2]
[364342091,1749073845666,-1117.39,0.00020464,2]
[364342093,1749073845676,-424.8,0.00020464,2]
[364342095,1749073845685,-440.0,0.00020464,2]
[364342097,1749073845695,-670.39,0.00020464,2]
[364342099,1749073845705,-440.0,0.00020464,2]
[364342101,1749073845716,-639.29,0.00020465,2]
[364342103,1749073845729,-440.0,0.00020465,2]
[364342105,1749073845739,-166.69271479,0.00020465,2]
[364342107,1749073845748,-500.0,0.00020547,2]
[364342109,1749073845757,-1514.33933137,0.00020555,3]
[364342111,1749073845768,-677.19,0.000206,2]
[364342113,1749073845778,-500.0,0.000206,2]
[364342115,1749073845787,-2098.31,0.000206,2]
[364342117,1749073845797,-440.0,0.000206,2]
[364342119,1749073845806,-853.25,0.000206,2]
[364342121,1749073845815,-696.82,0.00020601,2]
[364342123,1749073845826,-1215.72,0.00020601,2]
[364342125,1749073845836,-2849.63,0.00020601,2]
[364342127,1749073845846,-869.47,0.00020601,2]
[364342138,1749073845950,-440.0,0.00020602,2]
[364342140,1749073845961,-440.0,0.00020602,2]
[364342142,1749073845971,-464.32,0.00020602,2]
[364342144,1749073845980,-720.61,0.00020602,2]
[364342146,1749073845990,-440.0,0.00020602,2]
[364342147,1749073845999,-500.0,0.00020657,2]
[364342149,1749073846009,-500.0,0.00020657,2]
[364342152,1749073846019,-565.46220978,0.00020657,2]
[364342154,1749073846028,-500.0,0.00020657,2]
[364342155,1749073846038,-500.0,0.00020657,2]
[364342157,1749073846047,-504.31260326,0.00020657,2]
[364342159,1749073846056,-500.0,0.00020657,2]
[364342161,1749073846067,-500.0,0.00020657,2]
[364342162,1749073846078,-500.0,0.00020657,2]
[364342163,1749073846088,-500.0,0.00020657,2]
[364342164,1749073846098,-450.0,0.00020737,2]
[364342165,1749073846107,-1425.68,0.00020737,2]
[364342166,1749073846117,-1642.68,0.00020737,2]
[364342167,1749073846126,-570.94,0.00020737,2]
[364342168,1749073846136,-768.8,0.00020737,2]
[364342169,1749073846145,-449.49,0.00020737,2]
[364342170,1749073846155,-707.76,0.00020738,2]
[364342171,1749073846164,-440.0,0.00020738,2]
[364342172,1749073846175,-1723.47,0.00020738,2]
[364342173,1749073846184,-1117.39,0.00020738,2]
[364342174,1749073846195,-440.0,0.00020738,2]
[364342175,1749073846205,-670.39,0.00020738,2]
[364342176,1749073846215,-440.0,0.00020738,2]
[364342177,1749073846224,-639.29,0.00020739,2]
[364342178,1749073846235,-440.0,0.00020739,2]
[364342179,1749073846245,-1514.33933137,0.00020762,3]
[364342180,1749073846255,-57963.24,0.000208,2]
[364342181,1749073846265,-2098.31,0.00020874,2]
[364342182,1749073846274,-440.0,0.00020874,2]
[364342183,1749073846284,-853.25,0.00020874,2]
[364342184,1749073846294,-696.82,0.00020875,2]
[364342185,1749073846304,-1215.72,0.00020875,2]
[364342186,1749073846314,-2849.63,0.00020875,2]
[364342187,1749073846323,-869.47,0.00020875,2]
[364342188,1749073846334,-440.0,0.00020876,2]
[364342189,1749073846344,-440.0,0.00020876,2]
[364342190,1749073846353,-720.61,0.00020876,2]
[364342191,1749073846363,-420.0,0.00020876,2]
[364342192,1749073846374,-500.0,0.00020968,2]
[364342193,1749073846384,-1514.33933137,0.00020969,4]
[364342194,1749073846394,-542.54829244,0.00021011,2]
[364342195,1749073846403,-1425.68,0.00021011,2]
[364342197,1749073846413,-1642.68,0.00021011,2]
[364342198,1749073846423,-570.94,0.00021011,2]
[364342199,1749073846433,-768.8,0.00021011,2]
[364342200,1749073846443,-449.49,0.00021011,2]
[364342201,1749073846453,-707.76,0.00021012,2]
[364342202,1749073846463,-440.0,0.00021012,2]
[364342203,1749073846473,-1723.47,0.00021012,2]
[364342204,1749073846483,-1117.39,0.00021012,2]
[364342205,1749073846493,-440.0,0.00021012,2]
[364342207,1749073846503,-670.39,0.00021012,2]
[364342209,1749073846513,-440.0,0.00021012,2]
[364342210,1749073846522,-639.29,0.00021013,2]
[364342212,1749073846532,-440.0,0.00021013,2]
[364342214,1749073846541,-500.0,0.00021095,3]
[364342215,1749073846550,-2098.31,0.00021148,2]
[364342217,1749073846560,-440.0,0.00021148,2]
[364342219,1749073846569,-853.25,0.00021148,2]
[364342220,1749073846579,-696.82,0.00021149,2]
[364342222,1749073846588,-1215.72,0.00021149,2]
[364342224,1749073846598,-2849.63,0.00021149,2]
[364342226,1749073846608,-869.47,0.00021149,2]
[364342228,1749073846618,-440.0,0.0002115,2]
[364342230,1749073846628,-440.0,0.0002115,2]
[364342232,1749073846637,-720.61,0.0002115,2]
[364342234,1749073846647,-2600.0,0.00021164,2]
[364342235,1749073846656,-1514.33933137,0.00021176,4]
[364342237,1749073846666,-1000.0,0.00021205,2]
[364342239,1749073846675,-840.67825308,0.00021205,2]
[364342241,1749073846684,-1000.0,0.00021205,2]
[364342243,1749073846694,-500.0,0.00021205,2]
[364342245,1749073846703,-1000.0,0.00021205,2]
[364342247,1749073846713,-500.0,0.00021231,2]
[364342249,1749073846724,-600.0,0.00021231,2]
[364342251,1749073846733,-500.0,0.00021231,2]
[364342253,1749073846742,-500.0,0.00021231,2]
[364342255,1749073846751,-500.0,0.00021244,2]
[364342257,1749073846763,-160.3024375,0.00021244,2]
[364342259,1749073846772,-575.49483425,0.00021244,2]
[364342261,1749073846782,-500.0,0.00021244,2]
[364342263,1749073846792,-1425.68,0.00021285,2]
[364342265,1749073846803,-1642.68,0.00021285,2]
[364342267,1749073846813,-570.94,0.00021285,2]
[364342269,1749073846823,-768.8,0.00021285,2]
[364342271,1749073846833,-449.49,0.00021285,2]
[364342273,1749073846843,-707.76,0.00021286,2]
[364342275,1749073846852,-440.0,0.00021286,2]
[364342277,1749073846862,-1723.47,0.00021286,2]
[364342279,1749073846872,-1117.39,0.00021286,2]
[364342281,1749073846881,-428.74,0.00021286,2]
[364342283,1749073846891,-670.39,0.00021286,2]
[364342285,1749073846900,-440.0,0.00021286,2]
[364342287,1749073846910,-639.29,0.00021287,2]
[364342289,1749073846919,-364.1,0.00021287,2]
[364342291,1749073846929,-1514.33933137,0.00021383,5]
[364342293,1749073846939,-2098.31,0.00021422,2]
[364342295,1749073846948,-440.0,0.00021422,2]
[364342297,1749073846957,-853.25,0.00021422,2]
[364342299,1749073846966,-696.82,0.00021423,2]
[364342301,1749073846975,-1215.72,0.00021423,2]
[364342303,1749073846985,-2849.63,0.00021423,2]
[364342305,1749073846995,-869.47,0.00021423,2]
[364342307,1749073847004,-440.0,0.00021424,2]
[364342309,1749073847014,-440.0,0.00021424,2]
[364342311,1749073847024,-720.61,0.00021424,2]
[364342313,1749073847033,-585.80326892,0.00021429,2]
[364342315,1749073847043,-500.0,0.00021429,2]
[364342317,1749073847053,-500.0,0.00021429,2]
[364342319,1749073847062,-500.0,0.00021429,2]
[364342321,1749073847071,-202.5,0.00021429,2]
[364342322,1749073847081,-198.0,0.00021429,2]
[364342324,1749073847090,-500.0,0.00021429,2]
[364342326,1749073847100,-500.0,0.00021429,2]
[364342328,1749073847110,-374.49646234,0.00021429,2]
[364342331,1749073847119,-500.0,0.00021429,2]
[364342332,1749073847129,-218.17532902,0.00021429,2]
[364342334,1749073847138,-508.57450474,0.00021429,2]
[364342336,1749073847148,-70374.73179,0.00021558,2]
[364342338,1749073847157,-1425.68,0.00021559,2]
[364342340,1749073847167,-1642.68,0.00021559,2]
[364342342,1749073847178,-570.94,0.00021559,2]
[364342345,1749073847187,-768.8,0.00021559,2]
[364342346,1749073847197,-449.49,0.00021559,2]
[364342348,1749073847207,-707.76,0.0002156,2]
[364342351,1749073847217,-451.98,0.0002156,2]
[364342353,1749073847226,-1723.47,0.0002156,2]
[364342354,1749073847236,-1117.39,0.0002156,2]
[364342356,1749073847245,-670.39,0.0002156,2]
[364342359,1749073847255,-440.0,0.0002156,2]
[364342360,1749073847264,-639.29,0.00021561,2]
[364342362,1749073847274,-1514.33933137,0.0002159,5]
[364342364,1749073847283,-500.0,0.00021643,4]
[364342366,1749073847293,-2098.31,0.00021696,2]
[364342368,1749073847302,-440.0,0.00021696,2]
[364342370,1749073847312,-853.25,0.00021696,2]
[364342373,1749073847322,-696.82,0.00021697,2]
[364342375,1749073847331,-1215.72,0.00021697,2]
[364342376,1749073847341,-2849.63,0.00021697,2]
[364342378,1749073847351,-869.47,0.00021697,2]
[364342380,1749073847360,-440.0,0.00021698,2]
[364342382,1749073847370,-440.0,0.00021698,2]
[364342384,1749073847380,-720.61,0.00021698,2]
[364342386,1749073847390,-1364.01204775,0.00021753,2]
[364342388,1749073847400,-1500.0,0.00021753,2]
[364342390,1749073847409,-1500.0,0.00021753,2]
[364342392,1749073847419,-500.0,0.00021779,2]
[364342394,1749073847428,-1200.0,0.00021779,2]
[364342396,1749073847438,-500.0,0.00021779,2]
[364342398,1749073847447,-1000.0,0.00021779,2]
[364342400,1749073847456,-971.23588442,0.00021792,2]
[364342402,1749073847466,-1000.0,0.00021792,2]
[364342404,1749073847475,-1514.33933137,0.00021797,6]
[364342406,1749073847485,-677.19,0.000218,2]
[364342408,1749073847496,-1425.68,0.00021833,2]
[364342410,1749073847505,-1642.68,0.00021833,2]
[364342412,1749073847516,-570.94,0.00021833,2]
[364342414,1749073847525,-768.8,0.00021833,2]
[364342416,1749073847535,-449.49,0.00021833,2]
[364342418,1749073847545,-707.76,0.00021834,2]
[364342421,1749073847555,-1723.47,0.00021834,2]
[364342422,1749073847565,-1117.39,0.00021834,2]
[364342424,1749073847574,-670.39,0.00021834,2]
[364342427,1749073847584,-440.0,0.00021834,2]
[364342428,1749073847594,-639.29,0.00021835,2]
[364342430,1749073847604,-200.0,0.00021917,2]
[364342432,1749073847613,-500.0,0.00021917,2]
[364342434,1749073847623,-500.0,0.00021917,2]
[364342436,1749073847632,-500.0,0.00021917,2]
[364342438,1749073847642,-500.0,0.00021917,2]
[364342440,1749073847651,-500.0,0.00021917,2]
[364342441,1749073847660,-500.0,0.00021917,2]
[364342442,1749073847670,-500.0,0.00021917,2]
[364342443,1749073847679,-500.0,0.00021917,2]
[364342444,1749073847688,-365.71033948,0.00021917,2]
[364342445,1749073847697,-500.0,0.00021917,2]
[364342446,1749073847706,-500.0,0.00021917,2]
[364342447,1749073847716,-500.0,0.00021917,2]
[364342448,1749073847729,-500.0,0.00021917,2]
[364342449,1749073847739,-500.0,0.00021917,2]
[364342450,1749073847748,-500.0,0.00021917,2]
[364342451,1749073847757,-500.0,0.00021917,2]
[364342452,1749073847766,-500.0,0.00021917,2]
[364342453,1749073847775,-500.0,0.00021917,2]
[364342454,1749073847783,-500.0,0.00021917,2]
[364342455,1749073847792,-500.0,0.00021917,2]
[364342456,1749073847803,-500.0,0.00021917,2]
[364342457,1749073847813,-500.0,0.00021917,2]
[364342458,1749073847822,-500.0,0.00021917,2]
[364342459,1749073847831,-500.0,0.00021917,2]
[364342460,1749073847840,-500.0,0.00021917,2]
[364342461,1749073847849,-2098.31,0.0002197,2]
[364342462,1749073847859,-440.0,0.0002197,2]
[364342463,1749073847868,-853.25,0.0002197,2]
[364342464,1749073847877,-696.82,0.00021971,2]
[364342465,1749073847886,-1215.72,0.00021971,2]
[364342466,1749073847896,-2849.63,0.00021971,2]
[364342467,1749073847905,-869.47,0.00021971,2]
[364342468,1749073847914,-440.0,0.00021972,2]
[364342469,1749073847923,-440.0,0.00021972,2]
[364342470,1749073847933,-720.61,0.00021972,2]
[364342471,1749073847942,-1164.03,0.00022,7]
[364342472,1749073847951,-57963.24,0.00022,2]
[364342473,1749073847961,-500.0,0.00022,2]
[364342481,1749073848057,-1514.33933137,0.00022003,6]
[364342483,1749073848067,-1425.68,0.00022107,2]
[364342485,1749073848077,-1642.68,0.00022107,2]
[364342487,1749073848087,-570.94,0.00022107,2]
[364342489,1749073848097,-768.8,0.00022107,2]
[364342491,1749073848107,-449.49,0.00022107,2]
[364342493,1749073848117,-707.76,0.00022108,2]
[364342495,1749073848127,-1723.47,0.00022108,2]
[364342497,1749073848139,-1117.39,0.00022108,2]
[364342499,1749073848149,-670.39,0.00022108,2]
[364342502,1749073848159,-440.0,0.00022108,2]
[364342503,1749073848168,-639.29,0.00022109,2]
[364342506,1749073848179,-500.0,0.00022109,2]
[364342508,1749073848188,-500.0,0.00022132,2]
[364342509,1749073848201,-500.0,0.00022132,2]
[364342511,1749073848212,-500.0,0.00022132,2]
[364342514,1749073848226,-500.0,0.00022132,2]
[364342516,1749073848237,-500.0,0.00022132,2]
[364342518,1749073848246,-207.4,0.00022132,2]
[364342520,1749073848256,-500.0,0.00022132,2]
[364342522,1749073848266,-500.0,0.00022132,2]
[364342523,1749073848275,-5000.0,0.00022132,2]
[364342525,1749073848285,-500.0,0.00022132,2]
[364342527,1749073848295,-500.0,0.00022132,2]
[364342529,1749073848305,-500.0,0.00022132,2]
[364342531,1749073848315,-500.0,0.00022132,2]
[364342533,1749073848324,-500.0,0.00022132,2]
[364342535,1749073848333,-500.0,0.00022132,2]
[364342537,1749073848343,-500.0,0.00022132,2]
[364342539,1749073848352,-500.0,0.00022132,2]
[364342541,1749073848362,-823.0,0.00022146,2]
[364342543,1749073848371,-500.0,0.00022191,5]
[364342545,1749073848381,-1514.33933137,0.0002221,6]
[364342547,1749073848390,-2098.31,0.00022244,2]
[364342549,1749073848400,-440.0,0.00022244,2]
[364342551,1749073848409,-853.25,0.00022244,2]
[364342553,1749073848419,-696.82,0.00022245,2]
[364342555,1749073848430,-1215.72,0.00022245,2]
[364342557,1749073848439,-2849.63,0.00022245,2]
[364342559,1749073848449,-869.47,0.00022245,2]
[364342560,1749073848458,-440.0,0.00022246,2]
[364342563,1749073848468,-440.0,0.00022246,2]
[364342564,1749073848478,-720.61,0.00022246,2]
[364342566,1749073848488,-2600.0,0.0002226,2]
[364342569,1749073848498,-2000.0,0.00022301,2]
[364342571,1749073848508,-2000.0,0.00022301,2]
[364342573,1749073848518,-1800.0,0.00022327,2]
[364342574,1749073848528,-1500.0,0.00022327,2]
[364342576,1749073848538,-1425.68,0.00022381,2]
[364342578,1749073848548,-1642.68,0.00022381,2]
[364342580,1749073848557,-570.94,0.00022381,2]
[364342583,1749073848567,-768.8,0.00022381,2]
[364342585,1749073848577,-449.49,0.00022381,2]
[364342586,1749073848587,-707.76,0.00022382,2]
[364342588,1749073848597,-1723.47,0.00022382,2]
[364342590,1749073848606,-1117.39,0.00022382,2]
[364342592,1749073848615,-670.39,0.00022382,2]
[364342594,1749073848624,-440.0,0.00022382,2]
[364342596,1749073848634,-639.29,0.00022383,2]
[364342598,1749073848643,-500.0,0.00022383,2]
[364342600,1749073848653,-152.80813166,0.00022406,2]
[364342602,1749073848662,-159.62933508,0.00022406,2]
[364342604,1749073848672,-200.15363509,0.00022406,2]
[364342606,1749073848683,-1514.33933137,0.00022417,7]
[364342608,1749073848693,-250.0,0.00022457,2]
[364342610,1749073848703,-500.0,0.00022465,2]
[364342612,1749073848712,-2098.31,0.00022518,2]
[364342614,1749073848722,-440.0,0.00022518,2]
[364342616,1749073848733,-853.25,0.00022518,2]
[364342618,1749073848742,-696.82,0.00022519,2]
[364342620,1749073848753,-1215.72,0.00022519,2]
[364342622,1749073848762,-2849.63,0.00022519,2]
[364342624,1749073848773,-869.47,0.00022519,2]
[364342626,1749073848783,-440.0,0.0002252,2]
[364342628,1749073848792,-440.0,0.0002252,2]
[364342630,1749073848803,-720.61,0.0002252,2]
[364342632,1749073848813,-1000.0,0.00022548,2]
[364342634,1749073848823,-353.057519,0.00022548,2]
[364342636,1749073848832,-195.2425496,0.00022548,2]
[364342638,1749073848841,-1514.33933137,0.00022624,7]
[364342640,1749073848851,-1425.68,0.00022655,2]
[364342642,1749073848860,-1642.68,0.00022655,2]
[364342643,1749073848870,-570.94,0.00022655,2]
[364342646,1749073848880,-768.8,0.00022655,2]
[364342647,1749073848889,-449.49,0.00022655,2]
[364342649,1749073848899,-707.76,0.00022656,2]
[364342651,1749073848909,-1723.47,0.00022656,2]
[364342653,1749073848919,-1117.39,0.00022656,2]
[364342655,1749073848928,-670.39,0.00022656,2]
[364342658,1749073848938,-440.0,0.00022656,2]
[364342659,1749073848948,-639.29,0.00022657,2]
[364342661,1749073848959,-500.0,0.00022657,2]
[364342664,1749073848969,-151.0,0.00022659,7]
[364342665,1749073848979,-5000.0,0.0002268,2]
[364342668,1749073848989,-2000.0,0.00022684,2]
[364342670,1749073848998,-2000.0,0.00022684,2]
[364342671,1749073849008,-222.03353951,0.00022684,2]
[364342673,1749073849017,-2098.31,0.00022792,2]
[364342675,1749073849027,-440.0,0.00022792,2]
[364342677,1749073849037,-853.25,0.00022792,2]
[364342679,1749073849046,-696.82,0.00022793,2]
[364342681,1749073849056,-1215.72,0.00022793,2]
[364342684,1749073849066,-2849.63,0.00022793,2]
[364342686,1749073849076,-869.47,0.00022793,2]
[364342688,1749073849085,-440.0,0.00022794,2]
[364342690,1749073849094,-440.0,0.00022794,2]
[364342691,1749073849104,-720.61,0.00022794,2]
[364342693,1749073849113,-12500.0,0.00022816,3]
[364342695,1749073849122,-842.5625,0.0002282,3]
[364342697,1749073849132,-212.90465545,0.0002282,3]
[364342699,1749073849142,-1514.33933137,0.00022831,8]
[364342701,1749073849152,-2516.1556834,0.00022849,2]
[364342703,1749073849162,-2500.0,0.00022849,2]
[364342705,1749073849171,-12500.0,0.00022868,3]
[364342708,1749073849181,-2400.0,0.00022875,2]
[364342710,1749073849191,-2000.0,0.00022875,2]
[364342711,1749073849200,-12500.0,0.00022877,3]
[364342713,1749073849210,-3742.59133857,0.00022877,3]